fUSD/lending_fUSD_20240916
["ID","MTS","AMOUNT","RATE_DAILY","PERIOD"]
[338331848,1726503852325,500.42096487,0.00026,60]
[338331849,1726503854450,500.0,0.00026,60]
[338331850,1726503856475,500.68949264,0.00026,60]
[338331851,1726503860513,282.87565005,0.00026,60]
[338331852,1726503863842,500.0,0.00026,60]
[338331853,1726503866278,500.21030603,0.00026,60]
[338331854,1726503868497,500.39847676,0.00026,60]
[338331855,1726503889709,761.33,0.00026,60]
[338331856,1726503889977,761.33,0.00026,60]
[338331857,1726503890236,761.33,0.00026,60]
[338331858,1726503890557,761.33,0.00026,60]
[338331859,1726503890833,761.33,0.00026,60]
[338331860,1726503891100,761.33,0.00026,60]
[338331861,1726503891383,761.33,0.00026,60]
[338331862,1726503891678,761.33,0.00026,60]
[338331863,1726503891935,761.33,0.00026,60]
[338331864,1726503892206,761.33,0.00026,60]
[338331865,1726503892458,761.33,0.00026,60]
[338331866,1726503892708,761.33,0.00026,60]
[338331867,1726503892980,761.33,0.00026,60]
[338331868,1726503893269,761.33,0.00026,60]
[338331869,1726503893514,761.33,0.00026,60]
[338331870,1726503893874,761.33,0.00026,60]
[338331871,1726503894130,761.33,0.00026,60]
[338331872,1726503894719,761.33,0.00026,60]
[338331873,1726503894997,761.33,0.00026,60]
[338331874,1726503895253,761.33,0.00026,60]
[338331875,1726503895532,761.33,0.00026,60]
[338331876,1726503895791,761.33,0.00026,60]
[338331877,1726503896044,761.33,0.00026,60]
[338331878,1726503896483,761.36,0.00026,60]
[338331879,1726503900333,291.38,0.00011528,2]
[338331880,1726503900999,500.0,0.00026,60]
[338331881,1726503904586,500.0,0.00026,60]
[338331882,1726503905201,500.0,0.00026,60]
[338331883,1726503905487,500.0,0.00026,60]
[338331884,1726503905749,500.0,0.00026,60]
[338331885,1726503906015,500.0,0.00026,60]
[338331886,1726503906288,500.0,0.00026,60]
[338331887,1726503906578,500.0,0.00026,60]
[338331888,1726503906884,500.0,0.00026,60]
[338331889,1726503906922,153.45,0.00010959,2]
[338331890,1726503907323,500.0,0.00026,60]
[338331891,1726503907624,500.0,0.00026,60]
[338331892,1726503907893,479.33,0.00026,60]
[338331893,1726503909475,500.0,0.00026,60]
[338331894,1726503909754,500.0,0.00026,60]
[338331895,1726503909998,968.31,0.00026,60]
[338331896,1726503910054,500.0,0.00026,60]
[338331897,1726503910263,968.31,0.00026,60]
[338331898,1726503910537,968.31,0.00026,60]
[338331899,1726503910627,287.87,0.00026,60]
[338331900,1726503910872,968.31,0.00026,60]
[338331901,1726503911098,968.31,0.00026,60]
[338331902,1726503911361,968.31,0.00026,60]
[338331903,1726503911645,968.31,0.00026,60]
[338331904,1726503911934,968.31,0.00026,60]
[338331905,1726503912610,968.31,0.00026,60]
[338331906,1726503912863,968.31,0.00026,60]
[338331907,1726503913142,968.31,0.00026,60]
[338331908,1726503913425,968.31,0.00026,60]
[338331909,1726503913718,968.31,0.00026,60]
[338331910,1726503913974,968.31,0.00026,60]
[338331911,1726503914275,968.31,0.00026,60]
[338331912,1726503914584,968.31,0.00026,60]
[338331913,1726503914867,968.31,0.00026,60]
[338331914,1726503915153,968.31,0.00026,60]
[338331915,1726503915797,968.31,0.00026,60]
[338331916,1726503916081,968.31,0.00026,60]
[338331917,1726503916535,968.31,0.00026,60]
[338331918,1726503916804,968.31,0.00026,60]
[338331919,1726503917069,968.31,0.00026,60]
[338331920,1726503917603,968.39,0.00026,60]
[338331921,1726503926166,536.44,0.00026,60]
[338331922,1726503931557,500.0,0.00026,60]
[338331923,1726503932014,500.0,0.00026,60]
[338331924,1726503932135,500.0,0.00026,60]
[338331925,1726503932420,500.0,0.00026,60]
[338331926,1726503932684,500.0,0.00026,60]
[338331927,1726503932957,500.0,0.00026,60]
[338331928,1726503933219,500.0,0.00026,60]
[338331929,1726503933488,500.0,0.00026,60]
[338331930,1726503933770,500.0,0.00026,60]
[338331931,1726503934067,500.0,0.00026,60]
[338331932,1726503934328,500.0,0.00026,60]
[338331933,1726503934607,500.0,0.00026,60]
[338331934,1726503934903,500.0,0.00026,60]
[338331935,1726503935395,500.0,0.00026,60]
[338331936,1726503935638,542.36,0.00026,60]
[338331937,1726503955340,898.57,0.00026,60]
[338331938,1726503955617,898.57,0.00026,60]
[338331939,1726503955873,898.57,0.00026,60]
[338331940,1726503956148,898.57,0.00026,60]
[338331941,1726503956460,898.57,0.00026,60]
[338331942,1726503956722,898.57,0.00026,60]
[338331943,1726503957006,898.57,0.00026,60]
[338331944,1726503957238,500.0,0.00026,60]
[338331945,1726503957296,898.57,0.00026,60]
[338331946,1726503957584,898.57,0.00026,60]
[338331947,1726503957818,492.33,0.00026,60]
[338331948,1726503957873,898.57,0.00026,60]
[338331949,1726503958155,898.57,0.00026,60]
[338331950,1726503958420,898.57,0.00026,60]
[338331951,1726503958720,898.57,0.00026,60]
[338331952,1726503959328,898.57,0.00026,60]
[338331953,1726503959590,898.57,0.00026,60]
[338331954,1726503959857,898.57,0.00026,60]
[338331955,1726503960146,898.57,0.00026,60]
[338331956,1726503960472,898.57,0.00026,60]
[338331957,1726503960812,898.57,0.00026,60]
[338331958,1726503961069,898.57,0.00026,60]
[338331959,1726503961361,898.57,0.00026,60]
[338331960,1726503961623,898.57,0.00026,60]
[338331961,1726503961991,898.57,0.00026,60]
[338331962,1726503962275,898.63806934,0.00026,60]
[338331963,1726503962898,500.0,0.00026,60]
[338331964,1726503963206,500.0,0.00026,60]
[338331965,1726503963528,500.0,0.00026,60]
[338331966,1726503963767,430.59,0.00026,60]
[338331970,1726504033677,500.0,0.00026,60]
[338331971,1726504033947,500.0,0.00026,60]
[338331975,1726504034224,500.0,0.00026,60]
[338331976,1726504034530,500.0,0.00026,60]
[338331977,1726504034844,500.0,0.00026,60]
[338331978,1726504035108,500.0,0.00026,60]
[338331979,1726504035379,500.0,0.00026,60]
[338331980,1726504035636,500.0,0.00026,60]
[338331981,1726504036403,500.0,0.00026,60]
[338331982,1726504036696,500.0,0.00026,60]
[338331983,1726504036966,500.0,0.00026,60]
[338331984,1726504037238,378.24,0.00026,60]
[338331985,1726504059844,1047.44,0.00026,60]
[338331986,1726504061180,1047.44,0.00026,60]
[338331987,1726504061451,1047.44,0.00026,60]
[338331988,1726504061753,1047.44,0.00026,60]
[338331989,1726504062190,1047.44,0.00026,60]
[338331990,1726504062452,1047.44,0.00026,60]
[338331991,1726504062799,1047.44,0.00026,60]
[338331992,1726504063075,1047.44,0.00026,60]
[338331993,1726504063341,1047.44,0.00026,60]
[338331994,1726504063597,1047.44,0.00026,60]
[338331995,1726504064027,1047.44,0.00026,60]
[338331996,1726504064329,1047.44,0.00026,60]
[338331997,1726504064579,1047.44,0.00026,60]
[338331998,1726504064829,1047.44,0.00026,60]
[338331999,1726504065283,500.0,0.00026,60]
[338332000,1726504065464,1047.44,0.00026,60]
[338332001,1726504065547,500.0,0.00026,60]
[338332002,1726504065759,1047.44,0.00026,60]
[338332003,1726504065806,536.8,0.00026,60]
[338332004,1726504066023,1047.44,0.00026,60]
[338332005,1726504066319,1047.44,0.00026,60]
[338332006,1726504066889,1047.44,0.00026,60]
[338332007,1726504066953,1047.44,0.00026,60]
[338332008,1726504067141,1047.44,0.00026,60]
[338332009,1726504067396,1047.44,0.00026,60]
[338332010,1726504067656,1047.44,0.00026,60]
[338332011,1726504067937,1047.6096315,0.00026,60]
[338332020,1726504116437,652.46,0.00026,60]
[338332021,1726504116702,652.46,0.00026,60]
[338332022,1726504116952,652.46,0.00026,60]
[338332023,1726504117229,652.46,0.00026,60]
[338332024,1726504117557,652.46,0.00026,60]
[338332028,1726504117931,652.46,0.00026,60]
[338332029,1726504118215,652.46,0.00026,60]
[338332030,1726504118657,652.46,0.00026,60]
[338332031,1726504118734,652.46,0.00026,60]
[338332033,1726504119007,652.46,0.00026,60]
[338332034,1726504119285,652.46,0.00026,60]
[338332035,1726504119560,652.46,0.00026,60]
[338332036,1726504119819,652.46,0.00026,60]
[338332037,1726504120081,652.46,0.00026,60]
[338332038,1726504120344,652.46,0.00026,60]
[338332039,1726504120613,652.46,0.00026,60]
[338332041,1726504121279,652.46,0.00026,60]
[338332042,1726504121742,652.46,0.00026,60]
[338332043,1726504122019,652.46,0.00026,60]
[338332044,1726504122296,652.46,0.00026,60]
[338332045,1726504122580,652.46,0.00026,60]
[338332046,1726504122955,652.46,0.00026,60]
[338332047,1726504123270,652.46,0.00026,60]
[338332048,1726504123548,652.64,0.00026,60]
[338332052,1726504145457,500.0,0.00026,60]
[338332053,1726504145765,500.0,0.00026,60]
[338332054,1726504146015,500.0,0.00026,60]
[338332055,1726504146316,500.0,0.00026,60]
[338332056,1726504146602,500.0,0.00026,60]
[338332057,1726504146932,500.0,0.00026,60]
[338332058,1726504147252,312.91422646,0.00026,60]
[338332067,1726504153992,500.0,0.00026,60]
[338332069,1726504157587,500.0,0.00026,60]
[338332070,1726504157855,500.0,0.00026,60]
[338332071,1726504158135,500.0,0.00026,60]
[338332072,1726504158501,500.0,0.00026,60]
[338332073,1726504158757,500.0,0.00026,60]
[338332074,1726504159029,500.0,0.00026,60]
[338332075,1726504159362,500.0,0.00026,60]
[338332076,1726504159631,500.0,0.00026,60]
[338332077,1726504160058,500.0,0.00026,60]
[338332078,1726504160179,500.0,0.00026,60]
[338332079,1726504160550,500.0,0.00026,60]
[338332080,1726504161261,500.0,0.00026,60]
[338332081,1726504161532,500.0,0.00026,60]
[338332082,1726504161818,638.39501037,0.00026,60]
[338332086,1726504189951,273.7906924,0.00026,60]
[338332097,1726504232227,-398.23,0.00013378,2]
[338332098,1726504232236,-956.38142599,0.00013388,2]
[338332099,1726504232283,-543.61857401,0.00013388,2]
[338332100,1726504232293,-250.0,0.00013415,2]
[338332101,1726504232302,-266.04,0.00013415,2]
[338332102,1726504232311,-169.66,0.00013425,2]
[338332103,1726504232321,-398.23,0.00013454,2]
[338332104,1726504232330,-733.96,0.00013464,2]
[338332105,1726504232339,-200.69,0.00013659,2]
[338332106,1726504232350,-150.01,0.00013699,2]
[338332107,1726504232359,-505.24,0.000137,2]
[338332108,1726504232368,-398.23,0.00013726,2]
[338332109,1726504232377,-398.23,0.00013726,2]
[338332110,1726504232386,-396.29,0.00013726,2]
[338332111,1726504232396,-2365.3,0.00013726,2]
[338332112,1726504232405,-300.0,0.00013735,2]
[338332113,1726504232414,-499.99,0.00013736,2]
[338332114,1726504232424,-5017.36,0.00013736,2]
[338332115,1726504232433,-150.99,0.00013736,2]
[338332116,1726504232442,-398.23,0.00013739,2]
[338332117,1726504232451,-291.38,0.00013792,2]
[338332118,1726504232460,-150.01,0.00014321,2]
[338332119,1726504232470,-398.23,0.00014511,2]
[338332120,1726504232479,-415.99495571,0.00014511,2]
[338332121,1726504232489,-315.92,0.00014521,2]
[338332122,1726504232498,-1000.0,0.00014521,2]
[338332123,1726504232507,-398.23,0.00014522,2]
[338332124,1726504232517,-1000.0,0.00014526,2]
[338332125,1726504232527,-1000.0,0.00014532,2]
[338332126,1726504232537,-1000.0,0.00014537,2]
[338332127,1726504232546,-398.23,0.00014538,2]
[338332128,1726504232557,-1000.0,0.00014543,2]
[338332130,1726504232566,-1000.0,0.00014549,2]
[338332132,1726504232576,-1000.0,0.00014554,2]
[338332133,1726504232585,-398.23,0.00014555,2]
[338332135,1726504232595,-1000.0,0.0001456,2]
[338332137,1726504232604,-1000.0,0.00014565,2]
[338332139,1726504232613,-1000.0,0.00014571,2]
[338332141,1726504232622,-398.23,0.00014572,2]
[338332143,1726504232631,-1000.0,0.00014576,2]
[338332145,1726504232641,-1000.0,0.00014582,2]
[338332146,1726504232650,-500.0,0.00014582,2]
[338332147,1726504232659,-200.0,0.00014582,2]
[338332148,1726504232668,-1000.0,0.00014588,2]
[338332149,1726504232676,-150.0,0.00014589,2]
[338332150,1726504232686,-6890.5616,0.0001459,2]
[338332151,1726504232695,-9383.1375,0.0001459,2]
[338332152,1726504232704,-391.88821597,0.0001459,2]
[338332153,1726504232712,-557.1375,0.0001459,2]
[338332154,1726504232721,-500.0,0.0001459,2]
[338332155,1726504232730,-1000.0,0.00014593,2]
[338332156,1726504232739,-1000.0,0.00014599,2]
[338332157,1726504232748,-27567.861,0.000146,2]
[338332158,1726504232757,-256.48542111,0.000146,2]
[338332159,1726504232770,-627.82,0.000146,2]
[338332160,1726504232779,-1003.180001,0.000146,2]
[338332161,1726504232788,-3535.72328931,0.000146,2]
[338332162,1726504232799,-2275.57591369,0.000146,2]
[338332163,1726504232808,-4887.65664822,0.000146,2]
[338332164,1726504232817,-1000.0,0.00014604,2]
[338332165,1726504232826,-1000.0,0.0001461,2]
[338332166,1726504232836,-1000.0,0.00014616,2]
[338332167,1726504232845,-1000.0,0.00014621,2]
[338332168,1726504232854,-1000.0,0.00014627,2]
[338332169,1726504232863,-1000.0,0.00014632,2]
[338332170,1726504232873,-3535.72328927,0.00014633,2]
[338332171,1726504232882,-1000.0,0.00014638,2]
[338332172,1726504232891,-1000.0,0.00014644,2]
[338332173,1726504232900,-963.485,0.00014648,2]
[338332174,1726504232909,-242.564,0.00014648,2]
[338332175,1726504232919,-1000.0,0.00014649,2]
[338332176,1726504232928,-1000.0,0.00014655,2]
[338332177,1726504232937,-1000.0,0.0001466,2]
[338332178,1726504232946,-1000.0,0.00014666,2]
[338332179,1726504232954,-3535.72328927,0.00014667,2]
[338332180,1726504232964,-1000.0,0.00014672,2]
[338332181,1726504232972,-200.0,0.00014673,2]
[338332182,1726504232981,-256.48542109,0.00014675,2]
[338332183,1726504232990,-1000.0,0.00014677,2]
[338332184,1726504233000,-1000.0,0.00014683,2]
[338332185,1726504233009,-1500.0,0.00014685,2]
[338332186,1726504233018,-1000.0,0.00014688,2]
[338332187,1726504233027,-3027.48633348,0.0001469,3]
[338332188,1726504233036,-10152.28063939,0.0001469,3]
[338332189,1726504233059,-562.21440665,0.0001469,3]
[338332190,1726504233070,-2498.3477175,0.0001469,3]
[338332191,1726504233081,-1881.40812481,0.0001469,3]
[338332192,1726504233093,-3070.66711255,0.0001469,3]
[338332193,1726504233102,-150.95,0.0001469,2]
[338332194,1726504233112,-1000.0,0.00014694,2]
[338332195,1726504233121,-19.01420912,0.00014699,5]
[338332196,1726504233132,-1435.77559927,0.00014699,5]
[338332197,1726504233141,-500.0,0.00014699,2]
[338332198,1726504233150,-561.68833301,0.00014699,2]
[338332199,1726504233159,-1000.0,0.00014699,2]
[338332200,1726504233168,-785.0,0.000147,2]
[338332201,1726504233177,-1745.53742055,0.000147,2]
[338332202,1726504233187,-563.10986677,0.000147,2]
[338332203,1726504233198,-2423.19949662,0.000147,2]
[338332206,1726504238307,-5800.0,0.000147,2]
[338332207,1726504238319,-290.275,0.000147,2]
[338332208,1726504238527,-757.51353512,0.000147,2]
[338332209,1726504238582,-16064.44647,0.000147,2]
[338332210,1726504238593,-2909.57961677,0.000147,2]
[338332217,1726504240504,-579.424993,0.000147,2]
[338332457,1726504243293,-292.35005528,0.000147,2]
[338332458,1726504243305,-58093.38395832,0.000147,2]
[338332459,1726504243402,-1261.31414876,0.000147,2]
[338332513,1726504244104,-9001.87014775,0.000147,2]
[338332515,1726504244115,-1274.14471534,0.000147,2]
[338332561,1726504246241,-500.0,0.00014673,2]
[338332562,1726504246250,-68717.61286109,0.000147,2]
[338332563,1726504246261,-3559.9489424,0.000147,2]
[338332564,1726504246296,-48950.51324624,0.000147,2]
[338332565,1726504246307,-33590.90563275,0.000147,2]
[338332566,1726504246316,-705.0,0.000147,2]
[338332567,1726504246325,-11039.79,0.000147,2]
[338332568,1726504246334,-1097.43106477,0.000147,2]
[338332569,1726504246353,-472.15550848,0.000147,2]
[338332570,1726504246464,-498.62,0.000147,2]
[338332571,1726504249371,1000.0,0.00026,60]
[338332572,1726504249918,1000.0,0.00026,60]
[338332573,1726504250169,1000.0,0.00026,60]
[338332574,1726504250432,1000.0,0.00026,60]
[338332575,1726504250706,986.83502427,0.00026,60]
[338332576,1726504284070,3851.58725673,0.00013,2]
[338332577,1726504290785,1012.79,0.00026,60]
[338332578,1726504291251,1012.79,0.00026,60]
[338332579,1726504291522,1012.79,0.00026,60]
[338332580,1726504291778,1012.79,0.00026,60]
[338332581,1726504292111,1012.79,0.00026,60]
[338332582,1726504294331,1012.79,0.00026,60]
[338332583,1726504294702,1012.79,0.00026,60]
[338332584,1726504295607,1012.79,0.00026,60]
[338332585,1726504295674,1012.79,0.00026,60]
[338332586,1726504295745,1012.79,0.00026,60]
[338332587,1726504296446,1012.79,0.00026,60]
[338332588,1726504296700,1012.79,0.00026,60]
[338332589,1726504296957,1012.79,0.00026,60]
[338332590,1726504297202,1012.79,0.00026,60]
[338332591,1726504297626,1012.79,0.00026,60]
[338332592,1726504297939,1012.79,0.00026,60]
[338332593,1726504298534,1012.79,0.00026,60]
[338332594,1726504299118,1012.79,0.00026,60]
[338332595,1726504299390,1012.79,0.00026,60]
[338332596,1726504299724,1012.79,0.00026,60]
[338332597,1726504299978,1012.79,0.00026,60]
[338332598,1726504300272,1012.79,0.00026,60]
[338332599,1726504300669,1012.79,0.00026,60]
[338332600,1726504300930,1012.92,0.00026,60]
[338332601,1726504308370,1000.0,0.00026,60]
[338332602,1726504308668,1000.0,0.00026,60]
[338332603,1726504308988,1000.0,0.00026,60]
[338332604,1726504309243,331.85072864,0.00026,60]
[338332605,1726504319326,500.0,0.00026,60]
[338332606,1726504319610,500.0,0.00026,60]
[338332607,1726504319874,500.0,0.00026,60]
[338332608,1726504320129,500.0,0.00026,60]
[338332609,1726504320406,500.0,0.00026,60]
[338332610,1726504320656,500.0,0.00026,60]
[338332611,1726504320919,500.0,0.00026,60]
[338332612,1726504321167,500.0,0.00026,60]
[338332613,1726504321443,500.0,0.00026,60]
[338332614,1726504321727,500.0,0.00026,60]
[338332615,1726504322030,500.0,0.00026,60]
[338332616,1726504322334,500.0,0.00026,60]
[338332617,1726504322592,500.0,0.00026,60]
[338332618,1726504322952,191.44056651,0.00026,60]
[338332619,1726504407154,270.29,0.00011184,2]
[338332620,1726504408577,500.0,0.00026,60]
[338332621,1726504408844,440.16,0.00026,60]
[338332622,1726504413757,500.0,0.00026,60]
[338332623,1726504415994,500.0,0.00026,60]
[338332624,1726504416186,500.0,0.00026,60]
[338332625,1726504416445,500.0,0.00026,60]
[338332626,1726504416694,501.0140893,0.00026,60]
[338332627,1726504424002,500.0,0.00026,60]
[338332628,1726504424265,500.0,0.00026,60]
[338332629,1726504424546,500.0,0.00026,60]
[338332630,1726504424827,406.21,0.00026,60]
[338332631,1726504433463,430.76091745,0.00026,60]
[338332632,1726504506355,1500.0,0.00013077,2]
[338332634,1726504526450,250.0,0.00013089,2]
[338332635,1726504800854,533.22,0.00026,60]
[338332636,1726504812594,533.22,0.00026,60]
[338332637,1726504820209,533.22,0.00026,60]
[338332638,1726504831081,533.22,0.00026,60]
[338332639,1726504835708,533.22,0.00026,60]
[338332640,1726504842493,533.22,0.00026,60]
[338332641,1726504849631,533.22,0.00026,60]
[338332642,1726504855995,533.22,0.00026,60]
[338332643,1726504863539,533.22,0.00026,60]
[338332644,1726504870315,533.22,0.00026,60]
[338332645,1726504876473,533.22,0.00026,60]
[338332646,1726504907382,533.22,0.00026,60]
[338332647,1726504913673,533.22,0.00026,60]
[338332648,1726504922929,533.22,0.00026,60]
[338332649,1726504928380,256.77,0.0001115,2]
[338332650,1726504954542,151.1,0.00010959,2]
[338332651,1726504954725,160.55,0.00013078,2]
[338332654,1726505214953,250.0,0.00013099,2]
[338332674,1726505431488,-288.66117,0.00013127,2]
[338332675,1726505431500,-124.16883,0.00013127,2]
[338332676,1726505431509,-150.9720684,0.00013129,2]
[338332677,1726505431543,-99.0279316,0.00013129,2]
[338332678,1726505431552,-478.5504332,0.00013133,2]
[338332679,1726505431598,-108.6195668,0.00013133,2]
[338332680,1726505431607,-289.1,0.00013146,2]
[338332681,1726505431616,-189.25,0.0001341,2]
[338332682,1726505431625,-53.3604332,0.00013414,2]
[338332683,1726505431636,-203.4095668,0.00013414,2]
[338332684,1726505431645,-189.25,0.00013414,2]
[338332685,1726505431655,-150.0,0.00013414,2]
[338332686,1726505431664,-42.9704332,0.00013417,2]
[338332687,1726505431675,-146.2795668,0.00013417,2]
[338332688,1726505431684,-189.25,0.00013421,2]
[338332689,1726505431694,-189.25,0.00013424,2]
[338332690,1726505431703,-189.25,0.00013428,2]
[338332691,1726505431713,-189.25,0.00013431,2]
[338332692,1726505431722,-189.25,0.00013435,2]
[338332693,1726505431731,-189.25,0.00013438,2]
[338332694,1726505431739,-189.25,0.00013442,2]
[338332695,1726505431748,-189.25,0.00013445,2]
[338332696,1726505431758,-189.25,0.00013449,2]
[338332698,1726505431767,-189.25,0.00013453,2]
[338332699,1726505431776,-189.25,0.00013456,2]
[338332701,1726505431785,-189.25,0.0001346,2]
[338332703,1726505431794,-189.25,0.00013463,2]
[338332705,1726505431803,-189.25,0.00013467,2]
[338332706,1726505431812,-189.25,0.0001347,2]
[338332707,1726505431821,-189.25,0.00013474,2]
[338332708,1726505431830,-300.0,0.00013474,2]
[338332709,1726505431839,-189.25,0.00013477,2]
[338332710,1726505431847,-155.26,0.00013545,2]
[338332711,1726505431856,-500.0,0.0001366,2]
[338332712,1726505431865,-150.01,0.00013699,2]
[338332713,1726505431874,-500.0,0.000137,2]
[338332714,1726505431883,-500.0,0.000137,2]
[338332715,1726505431892,-500.0,0.000137,2]
[338332716,1726505431900,-500.0,0.000137,2]
[338332717,1726505431910,-500.0,0.000137,2]
[338332718,1726505431919,-500.0,0.000137,2]
[338332719,1726505431928,-500.0,0.000137,2]
[338332720,1726505431937,-500.0,0.000137,2]
[338332721,1726505431946,-500.0,0.000137,2]
[338332722,1726505431955,-500.0,0.000137,2]
[338332723,1726505431964,-473.35292582,0.000137,2]
[338332724,1726505432118,-26.64707418,0.000137,2]
[338332725,1726505432131,-301.0501759,0.000137,2]
[338332726,1726505432143,-198.9498241,0.000137,2]
[338332727,1726505432152,-248.25983443,0.000137,2]
[338332731,1726505437625,-251.74016557,0.000137,2]
[338332732,1726505437635,-377.83186774,0.000137,2]
[338332733,1726505437680,-122.16813226,0.000137,2]
[338332734,1726505437690,-389.5075787,0.000137,2]
[338332735,1726505437701,-110.4924213,0.000137,2]
[338332736,1726505437711,-500.0,0.000137,2]
[338332737,1726505437720,-500.0,0.000137,2]
[338332738,1726505437729,-500.0,0.000137,2]
[338332739,1726505437738,-394.0100787,0.000137,2]
[338332740,1726505437844,-105.9899213,0.000137,2]
[338332741,1726505437853,-500.0,0.000137,2]
[338332742,1726505437862,-500.0,0.000137,2]
[338332743,1726505437871,-500.0,0.000137,2]
[338332744,1726505437880,-500.0,0.000137,2]
[338332745,1726505437890,-500.0,0.000137,2]
[338332746,1726505437899,-500.0,0.000137,2]
[338332748,1726505437908,-500.0,0.000137,2]
[338332750,1726505437917,-500.0,0.000137,2]
[338332752,1726505437926,-500.0,0.000137,2]
[338332754,1726505437936,-500.0,0.000137,2]
[338332756,1726505437945,-500.0,0.000137,2]
[338332758,1726505437954,-500.0,0.000137,2]
[338332760,1726505437963,-500.0,0.000137,2]
[338332762,1726505437972,-500.0,0.000137,2]
[338332764,1726505437982,-500.0,0.000137,2]
[338332765,1726505437991,-500.0,0.000137,2]
[338332767,1726505438000,-500.0,0.000137,2]
[338332768,1726505438009,-500.0,0.000137,2]
[338332770,1726505438019,-500.0,0.000137,2]
[338332772,1726505438028,-500.0,0.000137,2]
[338332774,1726505438037,-500.0,0.000137,2]
[338332776,1726505438047,-500.0,0.000137,2]
[338332778,1726505438057,-500.0,0.000137,2]
[338332780,1726505438065,-500.0,0.000137,2]
[338332781,1726505438074,-500.0,0.000137,2]
[338332783,1726505438084,-500.0,0.000137,2]
[338332785,1726505438093,-500.0,0.000137,2]
[338332787,1726505438102,-500.0,0.000137,2]
[338332789,1726505438111,-500.0,0.000137,2]
[338332791,1726505438121,-500.0,0.000137,2]
[338332793,1726505438133,-500.0,0.000137,2]
[338332796,1726505438142,-500.0,0.000137,2]
[338332798,1726505438151,-500.0,0.000137,2]
[338332800,1726505438160,-500.0,0.000137,2]